[Event "45th FIDE Womens Olympiad 2024"]
[Site "Budapest"]
[Date "2024.09.15"]
[Round "5.16"]
[White "Lee, Alice"]
[Black "Mungunzul, Bat-Erdene"]
[Result "1/2-1/2"]
[ECO "D12"]
[WhiteElo "2384"]
[BlackElo "2224"]
[Annotator "TA"]
[PlyCount "116"]
[EventDate "2024.09.05"]
[EventType "team-tourn"]
[EventCountry "HUN"]
[SourceTitle "playchess.com"]
[Source "ChessBase"]
[SourceQuality "1"]
[WhiteTeam "United States of America"]
[BlackTeam "Mongolia"]
[BlackTeamCountry "MGL"]
[TimeControl "40/5400+30:1800+30"]

{[%evp 36,116,26,-10,0,-8,2,0,5,9,7,0,0,0,7,-58,0,-84,-98,-87,-42,-29,-36,-29,-33,-13,-19,-40,-35,-110,-96,-122,-121,-113,-109,-122,0,0,0,-8,-8,-8,-10,-39,-8,-42,-8,-8,-8,-8,0,0,0,0,0,0,0,-8,-8,-8,-8,-8,-7,-7,-7,-7,-7,-7,-7,-7,-7,-8,-8,-8,-8,-8,-8,-8,0,-8,0,-8,0]} 1. d4 {[%emt 0:00:19]} d5 {[%emt 0:00:08]} 2. c4 {[%emt 0:00:43]} c6 {[%emt 0:00:08]} 3. Nf3 {[%emt 0:00:19]} Nf6 {[%emt 0:00:08]} 4. e3 {[%emt 0:00:14]} Bf5 {[%emt 0:00:20]} 5. Nh4 {[%emt 0:01:07]} Be4 {[%emt 0:01:07]} 6. Nc3 {[%emt 0:10:19]} e6 {[%emt 0:00:17]} 7. f3 {[%emt 0:00:33]} Bg6 {[%emt 0:00:25] D12: Slav Defence: 3 Nf3 Nf6 4 e3 Bf5.} 8. Bd2 {[%emt 0:01:16]} Be7 {[%emt 0:01:02]} 9. Nxg6 {[%emt 0:01:39]} hxg6 {[%emt 0:00:17]} 10. Qc2 {[%emt 0:01:25]} a6 {[%emt 0:00:44]} 11. O-O-O {[%emt 0:00:55]} dxc4 {[%emt 0:04:11]} 12. Bxc4 {[%emt 0:01:40]} b5 {[%emt 0:00:11]} 13. Be2 {[%emt 0:01:11]} Nbd7 {[%emt 0:00:39]} 14. Kb1 {[%emt 0:02:27]} c5 {[%emt 0:04:24]} 15. d5 {[%emt 0:03:28]} exd5 {[%emt 0:03:51]} 16. Bc1 {[%emt 0:02:11]} Nb6 {[%emt 0:20:27]} 17. g4 {[%emt 0:03:56]} b4 $146 {[%emt 0:13:30]} ({Predecessor:} 17... d4 18. exd4 c4 19. d5 Bd6 20. g5 Nh5 21. f4 Qd7 22. Rhg1 Kf8 23. Ne4 Re8 {1-0 Maghsoodloo,P (2707)-Lagunow,R (2425) Qatar Masters op 2023 (3)}) 18. Na4 {[%emt 0:04:33]} Nfd7 {[%emt 0:02:00]} 19. f4 {[%emt 0:00:50]} Qc7 {[%emt 0:02:51]} 20. Bf3 {[%emt 0:01:38]} Qc6 {[%emt 0:00:27]} 21. Nxb6 $1 {[%emt 0:00:19]} Nxb6 {[%emt 0:00:09]} 22. e4 {[%emt 0:00:39]} d4 {[%emt 0:09:46]} 23. Rxd4 {[%emt 0:00:26]} Rc8 {[%emt 0:00:07]} 24. Rdd1 {[%emt 0:03:09]} c4 {[%emt 0:00:12]} 25. f5 {[%emt 0:08:59]} (25. h4 $11) 25... Rh3 {[%emt 0:03:53]} ({Better is} 25... gxf5 $15 26. Rhf1 Qb5 27. exf5 b3) 26. Qg2 {[%emt 0:12:24] [#]} (26. Rdf1 $1 $11) 26... c3 $1 $17 {[%emt 0:02:35]} 27. Ka1 {[%emt 0:02:48]} (27. bxc3 $2 bxc3 28. Qc2 Rxf3 $19) 27... Bf6 {[%emt 0:14:13]} (27... c2 28. Rd2 Rxf3 29. Qxf3 $16) 28. e5 $1 {[%emt 0:01:39]} (28. Qxh3 cxb2+ 29. Bxb2 Bxb2+ 30. Kxb2 Na4+ (30... Qc2+ 31. Ka1 Qc3+ 32. Kb1 Nc4 33. Qh8+ Ke7 34. Qh4+ f6 35. Rd7+ Kxd7 36. Rd1+ Ke7 37. Qxf6+ gxf6 38. Rd7+ Kxd7 39. fxg6 Nd2#) 31. Kb3 Qc3+ 32. Kxa4 Qa3#) 28... Qxf3 {[%emt 0:00:21]} (28... Rxf3 $6 29. Rd6 $16) 29. Qxf3 {[%emt 0:00:05]} Rxf3 {[%emt 0:00:03]} 30. exf6 {[%emt 0:00:08]} gxf6 {[%emt 0:00:24]} (30... gxf5 $2 {perishes.} 31. fxg7 Ke7 32. g8=Q (32. Rhe1+ Kf6 $18) 32... Rxg8 (32... cxb2+ 33. Bxb2 f4 34. Rhe1+ Re3 35. Rxe3+ fxe3 36. Qg5+ Ke8 37. Qxe3+ Kf8 38. Qxb6) 33. Rhe1+ Kf6 34. Rd6+ Kg7 35. Rxb6 $18) 31. bxc3 {[%emt 0:05:48]} bxc3 {[%emt 0:06:28]} (31... Rcxc3 $2 {too greedy.} 32. fxg6 fxg6 33. Rhe1+ Kf7 34. Rd6 $18) 32. Rhe1+ {[%emt 0:05:43]} (32. Rd6 $1 $15 Nc4 33. Rxf6) 32... Kf8 $17 {[%emt 0:00:08]} 33. Rd6 {[%emt 0:00:18]} Nc4 {[%emt 0:01:01]} 34. Rxf6 {[%emt 0:00:19]} a5 {[%emt 0:03:56]} 35. Ra6 {[%emt 0:02:51]} gxf5 {[%emt 0:00:28]} (35... g5 $17 {...c2 is the strong threat.} 36. Ra7 (36. Bxg5 $2 {is the wrong capture.} c2 $19) 36... Kg8) 36. gxf5 $11 {[%emt 0:01:00]} Nd2 {[%emt 0:02:54]} 37. Ba3+ {[%emt 0:08:51]} Kg7 {[%emt 0:00:26]} 38. Rg1+ {[%emt 0:00:31]} Kh7 {[%emt 0:00:07]} 39. Rxa5 {[%emt 0:01:10]} Nc4 {[%emt 0:02:34]} 40. Ra6 {[%emt 0:02:13]} Rxf5 {[%emt 0:02:13]} 41. Bc1 {[%emt 0:31:07]} Nd2 {[%emt 0:02:35]} 42. Ra4 {[%emt 0:00:00]} Rh5 {[%emt 0:02:05]} 43. Rg2 {[%emt 0:00:00]} Rg8 {[%emt 0:06:46]} 44. Rxg8 {[%emt 0:00:00]} Kxg8 {[%emt 0:00:05]} 45. Rg4+ {[%emt 0:00:00]} Kh7 {[%emt 0:01:19]} 46. Bxd2 {[%emt 0:00:00]} cxd2 {[%emt 0:00:11]} 47. Rd4 {[%emt 0:00:00]} Rxh2 {[%emt 0:00:12]} 48. Kb1 {[%emt 0:00:00]} Rh1+ {[%emt 0:01:16]} 49. Kc2 {[%emt 0:00:00]} Ra1 {[%emt 0:00:06]} 50. Kxd2 {[%emt 0:00:00]} Rxa2+ {[%emt 0:00:06]} 51. Ke3 {[%emt 0:00:00]} Kg6 {[%emt 0:00:09]} 52. Kf3 {[%emt 0:00:00]} Ra3+ {[%emt 0:00:24]} 53. Kf2 {[%emt 0:00:00]} Kg5 {[%emt 0:00:06]} 54. Rb4 {[%emt 0:00:00]} f5 {[%emt 0:00:06]} 55. Rc4 $1 {[%emt 0:00:00]} Ra2+ {[%emt 0:00:19]} 56. Kf3 {[%emt 0:00:00]} Ra3+ {[%emt 0:00:06]} 57. Kf2 {[%emt 0:00:00]} Ra2+ {[%emt 0:00:03]} 58. Kf3 {[%emt 0:00:00]} Ra3+ {[%emt 0:00:03]} 1/2-1/2

[Event "45th FIDE Womens Olympiad 2024"]
[Site "Budapest"]
[Date "2024.09.15"]
[Round "5.17"]
[White "Khamdamova, Afruza"]
[Black "Dzagnidze, Nana"]
[Result "1/2-1/2"]
[ECO "B19"]
[WhiteElo "2313"]
[BlackElo "2508"]
[Annotator "TA"]
[PlyCount "131"]
[EventDate "2024.09.05"]
[EventType "team-tourn"]
[EventCountry "HUN"]
[SourceTitle "playchess.com"]
[Source "ChessBase"]
[SourceQuality "1"]
[WhiteTeam "Uzbekistan"]
[BlackTeam "Georgia"]
[WhiteTeamCountry "UZB"]
[BlackTeamCountry "GEO"]
[TimeControl "40/5400+30:1800+30"]

{[%evp 30,131,0,-14,0,-36,-27,-31,-35,-28,-30,-22,-10,-43,-60,-74,-66,-77,-61,-72,0,-7,-14,-15,0,0,0,-1,0,0,0,0,0,0,0,0,0,0,20,8,10,0,0,-15,-20,-73,-72,-107,-107,-107,-93,-93,-93,-114,-35,-35,-35,-35,-35,-35,-35,-50,-31,-31,-18,-99,-99,-99,-99,-99,-99,-99,-8,-56,-8,-88,-88,-88,-88,-88,-88,-88,0,0,0,0,0,0,0,0,0,0,0,0,0,0,0,0,0,0,0,0,0,0]} 1. e4 {[%emt 0:00:04]} c6 {[%emt 0:00:06]} 2. d4 {[%emt 0:00:06]} d5 {[%emt 0:00:05]} 3. Nc3 {[%emt 0:00:05]} dxe4 {[%emt 0:00:06]} 4. Nxe4 {[%emt 0:00:05]} Bf5 {[%emt 0:00:09]} 5. Ng3 {[%emt 0:00:06]} Bg6 {[%emt 0:00:05]} 6. h4 {[%emt 0:00:06]} h6 {[%emt 0:00:06]} 7. Nf3 {[%emt 0:00:07]} Nd7 {[%emt 0:00:07]} 8. Bd3 {[%emt 0:00:16]} Bxd3 {[%emt 0:00:08]} 9. Qxd3 {[%emt 0:00:04]} e6 {[%emt 0:00:12]} 10. Bf4 $1 {[%emt 0:00:16] 10.Bf4 scores better than 10.Bd2.} Ngf6 {[%emt 0:00:13]} 11. O-O {[%emt 0:04:56] B19: Classical Caro-Kann: 4...Bf5 main line.} Be7 {[%emt 0:01:57]} 12. c4 {[%emt 0:00:11]} O-O {[%emt 0:00:58]} 13. Rfd1 {[%emt 0:00:23]} Qa5 $146 {[%emt 0:06:20]} ({Predecessor:} 13... Nb6 14. b3 c5 15. Qe3 cxd4 16. Nxd4 Qe8 17. Qf3 Qc8 18. Qe3 Bc5 19. Ne4 Nxe4 20. Qxe4 {0-1 Meng,W (1406)-Wu,Y (1539) CHN-ch U12 Girls 2024 (5)}) 14. a3 {[%emt 0:04:41]} b5 {[%emt 0:01:14]} 15. Rac1 {[%emt 0:10:43]} bxc4 {[%emt 0:05:45]} 16. Rxc4 {[%emt 0:00:37]} Qb5 {[%emt 0:05:46]} 17. Qc2 {[%emt 0:08:39]} Nd5 {[%emt 0:03:02]} 18. a4 {[%emt 0:18:49]} Qb7 {[%emt 0:10:34]} 19. Bd2 {[%emt 0:01:10]} Rfc8 {[%emt 0:15:26]} 20. a5 {[%emt 0:06:59]} Rab8 {[%emt 0:04:53]} 21. Rb1 {[%emt 0:09:21]} c5 {[%emt 0:04:30]} 22. dxc5 {[%emt 0:04:05]} Rxc5 {[%emt 0:00:19]} 23. Ne4 {[%emt 0:01:31]} Rxc4 {[%emt 0:04:13]} 24. Qxc4 {[%emt 0:00:05]} Qb3 {[%emt 0:04:42]} ({Black should play} 24... Rc8 $17 25. Qd3 Bb4) 25. Qxb3 $11 {[%emt 0:02:57]} Rxb3 {[%emt 0:00:03]} 26. Nc3 {[%emt 0:01:37]} Bf6 {[%emt 0:03:08]} 27. Nxd5 {[%emt 0:01:35]} exd5 {[%emt 0:00:03]} 28. Be3 {[%emt 0:05:28]} a6 {[%emt 0:04:48]} 29. Rd1 {[%emt 0:00:09]} Rb5 {[%emt 0:01:43]} 30. b4 $1 {[%emt 0:00:23]} Bc3 {[%emt 0:05:32]} (30... Rxb4 31. Rxd5 Nb8 32. Rc5 $14) 31. Bd2 {[%emt 0:00:36]} Bxd2 {[%emt 0:07:41]} ({Inferior is} 31... Bxb4 32. Nd4 Bxd2 33. Nxb5 Bxa5 34. Na7 $16 (34. Rxd5 Nf6 $17)) 32. Rxd2 {[%emt 0:00:05]} Nb8 {[%emt 0:03:31]} 33. Ne5 {[%emt 0:08:42]} f6 {[%emt 0:00:17]} 34. Nd3 {[%emt 0:00:40]} Nc6 {[%emt 0:00:06]} 35. g3 {[%emt 0:06:00]} d4 {[%emt 0:02:32]} 36. Rc2 {[%emt 0:03:50]} Nxb4 {[%emt 0:01:46]} 37. Nxb4 {[%emt 0:00:03]} (37. Rb2 $1 $11 Nc6 (37... Nxd3 $2 {perishes.} 38. Rxb5 f5 39. Rd5 $18) 38. Rxb5 axb5 39. a6) 37... Rxb4 $17 {[%emt 0:00:04]} 38. Rc6 {[%emt 0:00:04]} d3 {[%emt 0:00:54]} 39. Rd6 {[%emt 0:00:06]} Rb5 {[%emt 0:00:44]} 40. Rxd3 {[%emt 0:00:09]} Rxa5 {[%emt 0:01:23]} 41. Rd7 {[%emt 0:30:54]} Rb5 {[%emt 0:32:25]} (41... Kh7 $17) 42. Ra7 $15 {[%emt 0:00:10]} a5 {[%emt 0:00:15]} 43. Kg2 {[%emt 0:00:00]} Kh7 {[%emt 0:00:00]} 44. g4 {[%emt 0:00:00]} h5 {[%emt 0:00:00]} 45. f3 {[%emt 0:00:00]} hxg4 {[%emt 0:00:00]} 46. fxg4 {[%emt 0:00:00]} Rb4 {[%emt 0:00:00]} 47. Rxa5 {[%emt 0:00:00]} (47. Kf3 $1 $11) 47... Rxg4+ $17 {[%emt 0:00:00]} 48. Kh3 {[%emt 0:00:00]} Rc4 {[%emt 0:00:00]} 49. Kg3 {[%emt 0:00:00]} Kg6 {[%emt 0:00:00]} 50. Rb5 {[%emt 0:00:00]} f5 {[%emt 0:00:00]} ({Black should try} 50... Kh6 $17) 51. Ra5 {[%emt 0:00:00]} (51. Rb8 $11) 51... Rc3+ {[%emt 0:00:00]} (51... Rg4+ $15 52. Kh3 Rg1) 52. Kg2 {[%emt 0:00:00]} (52. Kf4 $1 $11 {keeps the balance.}) 52... Re3 $17 {[%emt 0:00:00]} 53. Rb5 {[%emt 0:00:00]} Kf6 {[%emt 0:00:00]} 54. Ra5 {[%emt 0:00:00]} g6 {[%emt 0:00:00]} 55. Rb5 {[%emt 0:00:17]} f4 {[%emt 0:00:00]} (55... Re5 $17 56. Rb6+ Re6) 56. Ra5 {[%emt 0:01:01]} Re5 {[%emt 0:00:00]} 57. Ra3 {[%emt 0:03:17]} Kf5 {[%emt 0:00:00]} 58. Kf3 {[%emt 0:00:12]} Rb5 {[%emt 0:00:00]} 59. Rc3 {[%emt 0:00:12]} Ra5 {[%emt 0:01:57]} 60. Rb3 {[%emt 0:00:05]} Re5 {[%emt 0:00:18]} 61. Ra3 {[%emt 0:00:12]} Re3+ {[%emt 0:00:24]} 62. Rxe3 {[%emt 0:00:07]} fxe3 {[%emt 0:00:01]} 63. h5 $1 {[%emt 0:00:07]} gxh5 {[%emt 0:00:26]} 64. Kxe3 {[%emt 0:00:04]} Kg4 {[%emt 0:00:04]} 65. Kf2 {[%emt 0:00:04]} h4 {[%emt 0:00:14]} 66. Kg2 {[%emt 0:00:03]} 1/2-1/2

[Event "45th FIDE Womens Olympiad 2024"]
[Site "Budapest"]
[Date "2024.09.15"]
[Round "5.17"]
[White "Hamadeh, Sally"]
[Black "Yavo Tchetche, Marie"]
[Result "0-1"]
[ECO "B40"]
[WhiteElo "1557"]
[BlackElo "1686"]
[PlyCount "82"]
[EventDate "2024.09.05"]
[EventType "team-tourn"]
[EventCountry "HUN"]
[WhiteTeam "Lebanon"]
[BlackTeam "Cote d/^Ivoire"]
[WhiteTeamCountry "LBN"]
[TimeControl "40/5400+30:1800+30"]

1. e4 e6 2. Nf3 c5 3. d4 cxd4 4. Nxd4 Nf6 5. Nc3 Bb4 6. Bd3 h6 7. O-O Bxc3 8. bxc3 d6 9. Ba3 a6 10. Kh1 e5 11. Ne2 O-O 12. c4 Be6 13. Nc3 Qc7 14. Qe2 Nbd7 15. Rfd1 Rfc8 16. Nd5 Bxd5 17. cxd5 b5 18. Qd2 Nc5 19. f3 Nfd7 20. Rab1 Na4 21. Bb2 Nxb2 22. Rxb2 Nc5 23. g3 Na4 24. Rb3 Nc3 25. Rg1 Nxa2 26. f4 f6 27. Be2 Qxc2 28. Rb2 Qxd2 29. Rxd2 Nc3 30. Bf3 Rc4 31. Re1 a5 32. Rc2 b4 33. Bd1 b3 34. Rb2 Nxd1 35. Rxd1 a4 36. Ra1 Rac8 37. Kg2 Rc2+ 38. Rxc2 Rxc2+ 39. Kf3 b2 40. Rb1 a3 41. Ke3 Rc1 {0-} 0-1

[Event "45th FIDE Womens Olympiad 2024"]
[Site "Budapest"]
[Date "2024.09.15"]
[Round "5.18"]
[White "Javakhishvili, Lela"]
[Black "Yakubbaeva, Nilufar"]
[Result "1/2-1/2"]
[ECO "B14"]
[WhiteElo "2446"]
[BlackElo "2248"]
[Annotator "RC"]
[PlyCount "131"]
[EventDate "2024.09.05"]
[EventType "team-tourn"]
[EventCountry "HUN"]
[SourceTitle "playchess.com"]
[Source "ChessBase"]
[SourceQuality "1"]
[WhiteTeam "Georgia"]
[BlackTeam "Uzbekistan"]
[WhiteTeamCountry "GEO"]
[BlackTeamCountry "UZB"]
[TimeControl "40/5400+30:1800+30"]

1. d4 {[%emt 0:00:05]} d5 {[%emt 0:00:09]} 2. c4 {[%emt 0:00:09]} e6 {[%emt 0:00:03]} 3. Nc3 {[%emt 0:00:35]} c5 {[%emt 0:00:04]} 4. e3 {[%emt 0:02:02]} cxd4 {[%emt 0:02:47]} 5. exd4 {[%emt 0:00:07]} Nf6 {[%emt 0:01:03]} 6. Nf3 {[%emt 0:00:34]} Be7 {[%emt 0:01:46]} 7. Bg5 {[%emt 0:09:39]} O-O {[%emt 0:05:04]} 8. Rc1 {[%emt 0:00:25]} dxc4 {[%emt 0:05:56]} 9. Bxc4 {[%emt 0:00:53]} a6 {[%emt 0:00:14]} 10. O-O {[%emt 0:04:13]} b5 {[%emt 0:00:30]} 11. Bb3 {[%emt 0:05:29]} Bb7 {[%emt 0:01:47]} 12. Re1 {[%emt 0:00:22]} Nbd7 {[%emt 0:07:05]} 13. Qe2 {[%emt 0:07:36]} b4 {[%emt 0:08:01]} 14. Na4 {[%emt 0:01:10]} Nd5 {[%emt 0:03:38]} 15. Bd2 {[%emt 0:02:00]} Qa5 {[%emt 0:07:43]} 16. a3 {[%emt 0:27:32]} Qb5 {[%emt 0:12:17]} 17. axb4 {[%emt 0:10:44]} Bxb4 {[%emt 0:21:10]} 18. Bxd5 {[%emt 0:08:35]} Qxe2 {[%emt 0:00:58]} 19. Rxe2 {[%emt 0:00:05]} Bxd2 {[%emt 0:00:03]} 20. Bxb7 {[%emt 0:00:14]} Bxc1 {[%emt 0:00:06]} 21. Bxa8 {[%emt 0:00:05]} Rxa8 {[%emt 0:00:11]} 22. Rc2 {[%emt 0:00:29]} Bf4 {[%emt 0:00:20]} 23. g3 {[%emt 0:00:05]} Bd6 {[%emt 0:00:16]} 24. Rc6 {[%emt 0:00:03]} Bb4 {[%emt 0:00:19]} 25. Nc5 {[%emt 0:04:08]} Nxc5 {[%emt 0:04:46]} 26. dxc5 {[%emt 0:00:02]} Ba5 {[%emt 0:00:30]} 27. Ne5 {[%emt 0:00:55]} Kf8 {[%emt 0:00:44]} 28. Nc4 {[%emt 0:02:12]} Bd8 {[%emt 0:01:55]} 29. Nb6 {[%emt 0:03:21]} Bxb6 {[%emt 0:00:12]} 30. Rxb6 {[%emt 0:00:09]} a5 {[%emt 0:01:59]} 31. Kg2 {[%emt 0:00:27]} a4 {[%emt 0:01:32]} 32. Kf3 {[%emt 0:01:07]} a3 {[%emt 0:03:45]} 33. bxa3 {[%emt 0:00:04]} Rxa3+ {[%emt 0:00:02]} 34. Ke4 {[%emt 0:00:10]} Rc3 {[%emt 0:01:33]} 35. c6 {[%emt 0:03:12]} Ke7 {[%emt 0:00:32]} 36. Rb7+ {[%emt 0:00:42]} Kf6 {[%emt 0:00:07]} 37. c7 {[%emt 0:01:03]} h5 {[%emt 0:00:24]} 38. h4 {[%emt 0:03:46]} Rc4+ {[%emt 0:01:15]} 39. Kd3 {[%emt 0:00:05]} Rc1 {[%emt 0:00:29]} 40. f3 {[%emt 0:00:22]} Ke5 {[%emt 0:02:51]} 41. c8=Q {[%emt 0:31:54]} Rxc8 {[%emt 0:30:07]} 42. Rxf7 {[%emt 0:00:05]} Rg8 {[%emt 0:01:22]} 43. f4+ {[%emt 0:01:03]} Kd5 {[%emt 0:01:06]} 44. Rd7+ {[%emt 0:00:23]} Kc6 {[%emt 0:00:10]} 45. Ra7 {[%emt 0:00:08]} e5 {[%emt 0:03:07]} 46. f5 {[%emt 0:00:00]} Kd5 {[%emt 0:00:00]} 47. Ra5+ {[%emt 0:00:00]} Kd6 {[%emt 0:00:00]} 48. Ke4 {[%emt 0:00:00]} Rb8 {[%emt 0:00:00]} 49. Ra6+ {[%emt 0:00:00]} Ke7 {[%emt 0:00:00]} 50. Rg6 {[%emt 0:00:00]} Kf7 {[%emt 0:00:00]} 51. Kxe5 {[%emt 0:00:00]} Rb4 {[%emt 0:00:00]} 52. Rg5 {[%emt 0:00:00]} Rb3 {[%emt 0:00:00]} 53. Kf4 {[%emt 0:00:00]} Rb4+ {[%emt 0:00:00]} 54. Kf3 {[%emt 0:00:00]} Rb3+ {[%emt 0:00:00]} 55. Kg2 {[%emt 0:00:00]} Kf6 {[%emt 0:00:00]} 56. Rxh5 {[%emt 0:00:00]} Rb5 {[%emt 0:00:00]} 57. Rg5 {[%emt 0:00:23]} Rxf5 {[%emt 0:00:00]} 58. Rxf5+ {[%emt 0:00:06]} Kxf5 {[%emt 0:00:00]} 59. Kf3 {[%emt 0:00:05]} g6 {[%emt 0:00:00]} 60. g4+ {[%emt 0:00:39]} Kf6 {[%emt 0:00:00]} 61. Ke4 {[%emt 0:01:16]} Ke6 {[%emt 0:00:00]} 62. Kd4 {[%emt 0:03:14]} Kd6 {[%emt 0:00:00]} 63. Ke4 {[%emt 0:02:05]} Ke6 {[%emt 0:00:00]} 64. Kf4 {[%emt 0:00:07]} Kf6 {[%emt 0:00:00]} 65. Kf3 {[%emt 0:00:13]} Kf7 {[%emt 0:00:00]} 66. Ke4 {[%emt 0:02:17]} 1/2-1/2

[Event "45th FIDE Womens Olympiad 2024"]
[Site "Budapest"]
[Date "2024.09.15"]
[Round "5.18"]
[White "Kouassi, Edichy Berenice"]
[Black "Fawaz, Nadia"]
[Result "1/2-1/2"]
[ECO "E01"]
[WhiteElo "1528"]
[BlackElo "1747"]
[PlyCount "107"]
[EventDate "2024.09.05"]
[EventType "team-tourn"]
[EventCountry "HUN"]
[WhiteTeam "Cote d/^Ivoire"]
[BlackTeam "Lebanon"]
[BlackTeamCountry "LBN"]
[TimeControl "40/5400+30:1800+30"]

1. d4 d5 2. Nf3 Nf6 3. g3 e6 4. Bg2 Bd6 5. O-O O-O 6. c4 c6 7. Nc3 Nbd7 8. Nd2 b6 9. e4 dxe4 10. Ndxe4 Nxe4 11. Nxe4 Bc7 12. Nc3 Bb7 13. Nb5 cxb5 14. Bxb7 Rb8 15. Bg2 bxc4 16. a4 a6 17. Be3 Nf6 18. Qe2 b5 19. axb5 axb5 20. Ra3 Nd5 21. Bd2 Qf6 22. Rd1 Bd6 23. Ra6 Rb6 24. Ra7 h6 25. Qf3 Qxf3 26. Bxf3 Nf6 27. Rda1 Rfb8 28. R1a6 b4 29. Rxb6 Rxb6 30. Rb7 Rxb7 31. Bxb7 Nd5 32. Ba6 c3 33. bxc3 bxc3 34. Bc1 c2 35. Kf1 Nc3 36. Ke1 Bb4 37. Kd2 Na2+ 38. Kxc2 Nxc1 39. Kxc1 Bc3 40. f3 Bxd4 41. Kc2 Bg1 42. h3 Kf8 43. g4 Ke7 44. Kd3 Kf6 45. Ke4 Kg5 46. f4+ Kh4 47. Bf1 Bh2 48. f5 e5 49. Bg2 h5 50. Kf3 g6 51. fxg6 fxg6 52. gxh5 Kxh5 53. Ke4 Kh4 54. Kf3 1/2-1/2

[Event "45th FIDE Womens Olympiad 2024"]
[Site "Budapest"]
[Date "2024.09.15"]
[Round "5.19"]
[White "Omonova, Umida"]
[Black "Batsiashvili, Nino"]
[Result "1/2-1/2"]
[ECO "C54"]
[WhiteElo "2032"]
[BlackElo "2461"]
[Annotator "TA"]
[PlyCount "147"]
[EventDate "2024.09.05"]
[EventType "team-tourn"]
[EventCountry "HUN"]
[SourceTitle "playchess.com"]
[Source "ChessBase"]
[SourceQuality "1"]
[WhiteTeam "Uzbekistan"]
[BlackTeam "Georgia"]
[WhiteTeamCountry "UZB"]
[BlackTeamCountry "GEO"]
[TimeControl "40/5400+30:1800+30"]

{[%evp 43,147,0,18,0,50,41,53,45,51,9,8,19,136,145,143,117,171,134,143,141,105,118,183,154,379,283,275,237,296,257,269,260,301,244,305,315,386,385,343,370,389,364,368,364,375,360,384,369,378,203,218,207,214,168,217,208,165,127,116,43,455,455,3464,2651,6095,7802,2305,183,183,183,183,183,183,183,183,183,183,183,183,183,183,183,183,183,183,183,183,183,183,183,183,160,160,160,169,155,155,155,155,155,155,155,155,8,8,8]} 1. e4 {[%emt 0:00:46]} e5 {[%emt 0:00:03]} 2. Nf3 {[%emt 0:00:15]} Nc6 {[%emt 0:00:06]} 3. Bc4 {[%emt 0:00:28]} Nf6 {[%emt 0:00:04]} 4. d3 {[%emt 0:00:14]} Bc5 {[%emt 0:00:17]} 5. O-O {[%emt 0:00:24]} d6 {[%emt 0:00:31]} 6. c3 {[%emt 0:00:26]} O-O {[%emt 0:02:24]} 7. Nbd2 {[%emt 0:01:30]} a5 {[%emt 0:00:14] C54: Giuoco Piano: 4 c3 Nf6, main lines with 5 d4 and 5 d3.} 8. h3 {[%emt 0:01:03]} Ba7 {[%emt 0:01:37]} 9. Re1 {[%emt 0:02:32]} Be6 {[%emt 0:00:08]} 10. Bb5 {[%emt 0:02:08]} Ne7 {[%emt 0:00:19]} 11. Nf1 {[%emt 0:00:42]} c6 {[%emt 0:02:06]} 12. Ba4 {[%emt 0:00:48]} Ng6 {[%emt 0:02:25]} 13. Ng3 {[%emt 0:02:29]} h6 {[%emt 0:04:08]} 14. Bc2 {[%emt 0:08:50]} Qd7 $146 {[%emt 0:06:45]} ({Predecessor:} 14... Qc8 15. d4 Re8 16. Be3 b5 17. Qd2 Qc7 18. Nf5 Bxf5 19. exf5 Nf8 20. Bxh6 N8h7 21. dxe5 dxe5 {½-½ Dominguez Perez,L (2750)-Andreikin,D (2722) Hengshui IMSA blitz 2019 (7)}) 15. d4 {[%emt 0:02:27]} b5 {[%emt 0:17:21]} 16. Be3 {[%emt 0:07:28]} Rfd8 {[%emt 0:00:22]} 17. Qd2 {[%emt 0:04:37]} a4 {[%emt 0:01:16]} 18. a3 {[%emt 0:00:51]} Qe8 {[%emt 0:00:52]} 19. Rad1 {[%emt 0:02:56]} Qf8 {[%emt 0:05:16]} 20. Qc1 {[%emt 0:04:36]} Rac8 {[%emt 0:04:19]} 21. Nf5 {[%emt 0:10:42]} Bb8 {[%emt 0:06:47]} 22. Re2 {[%emt 0:09:33]} (22. Nh2 $5) 22... Bc4 {[%emt 0:03:59]} 23. Red2 {[%emt 0:02:36]} (23. dxe5 $5 dxe5 (23... Bxe2 $2 24. exf6 gxf6 25. Nh2 $18) 24. Red2 $11) 23... d5 {[%emt 0:07:30]} (23... Re8 $11) 24. Nxe5 $14 {[%emt 0:05:19]} Nxe5 {[%emt 0:02:37]} 25. dxe5 {[%emt 0:00:06]} Bxe5 {[%emt 0:00:57]} 26. f4 {[%emt 0:01:16]} Bc7 {[%emt 0:02:21]} 27. e5 {[%emt 0:01:12]} Nd7 {[%emt 0:01:43]} (27... Ne4 $11) 28. Re1 $16 {[%emt 0:02:14]} Re8 {[%emt 0:03:52]} 29. Qd1 $1 {[%emt 0:00:55]} c5 {[%emt 0:04:02]} (29... g6 $16) 30. Nxh6+ {[%emt 0:05:02]} gxh6 {[%emt 0:00:02]} 31. Qg4+ {[%emt 0:00:06]} Qg7 {[%emt 0:00:43]} 32. Qxd7 {[%emt 0:00:02]} Red8 {[%emt 0:00:23]} (32... d4 $16) 33. Qe7 {[%emt 0:03:15]} Bb6 $2 {[%emt 0:01:33]} (33... d4 $16 {was necessary.}) 34. Bf2 {[%emt 0:01:32]} d4 {[%emt 0:00:22]} 35. Bf5 {[%emt 0:03:33]} Bd5 {[%emt 0:04:50]} 36. g4 {[%emt 0:00:35]} Rb8 {[%emt 0:00:51]} 37. cxd4 {[%emt 0:03:11]} Ba5 {[%emt 0:01:09]} 38. Red1 {[%emt 0:00:09]} Bxd2 {[%emt 0:00:37]} 39. Rxd2 {[%emt 0:00:01]} c4 {[%emt 0:01:54]} 40. Bh4 {[%emt 0:01:25]} b4 {[%emt 0:00:11]} 41. axb4 {[%emt 0:36:39]} (41. Qxd8+ Rxd8 42. Bxd8 Qf8 $19) 41... Qf8 {[%emt 0:35:55]} 42. Rc2 {[%emt 0:00:00]} Qxe7 {[%emt 0:00:00]} 43. Bxe7 {[%emt 0:00:00]} Re8 {[%emt 0:00:00]} 44. Bc5 {[%emt 0:00:00]} Rb7 {[%emt 0:00:00]} 45. Rc3 {[%emt 0:00:00]} Reb8 {[%emt 0:00:00]} 46. Bc2 {[%emt 0:00:00]} (46. Kf2 $142) 46... Rxb4 $18 {[%emt 0:00:00]} 47. Bxb4 {[%emt 0:00:00]} Rxb4 {[%emt 0:00:00]} 48. f5 {[%emt 0:00:00]} Rxb2 {[%emt 0:00:00]} 49. Bxa4 {[%emt 0:00:00]} Rd2 {[%emt 0:00:00]} 50. Bb5 {[%emt 0:00:00]} Rxd4 {[%emt 0:00:00] [#]} 51. Kf2 {[%emt 0:00:00]} (51. Re3 $1 $16 {e6 is the strong threat.} Kf8 52. f6) 51... Re4 $2 {[%emt 0:00:00][%mdl 8192] [#]} (51... Rf4+ $14 52. Ke3 Re4+ 53. Kf2 Kf8) 52. Re3 $1 $18 {[%emt 0:00:00]} Rxe3 {[%emt 0:00:00]} (52... c3 $142 53. Rxc3 h5) 53. Kxe3 $18 {[%emt 0:00:00]} Bg2 {[%emt 0:00:00]} 54. Bxc4 {[%emt 0:00:00]} Bxh3 {[%emt 0:00:00]} 55. Kf3 $2 {[%emt 0:02:30]} (55. Kf4 {White threatens Kg3 and mate.} Bg2 56. f6) 55... h5 $18 {[%emt 0:00:00]} 56. gxh5 {[%emt 0:00:10]} Bxf5 {[%emt 0:00:00]} 57. Kf4 {[%emt 0:00:08]} Bc2 {[%emt 0:04:25]} 58. Kg5 {[%emt 0:00:14]} Bd1 {[%emt 0:00:14]} 59. h6 {[%emt 0:00:45]} Ba4 {[%emt 0:00:35]} 60. Kf6 {[%emt 0:01:12]} Kh7 {[%emt 0:00:01]} 61. Bxf7 {[%emt 0:03:28]} Kxh6 {[%emt 0:00:02]} 62. e6 {[%emt 0:00:08]} Bb5 {[%emt 0:02:15]} 63. e7 {[%emt 0:00:06]} Ba4 {[%emt 0:01:18]} 64. Bc4 {[%emt 0:00:05]} (64. e8=B Bxe8 $11) 64... Be8 {[%emt 0:00:31]} 65. Bd5 {[%emt 0:00:06]} Ba4 {[%emt 0:00:17]} 66. Kf7 {[%emt 0:00:03]} Kg5 {[%emt 0:00:31]} 67. Kg7 {[%emt 0:00:11]} ({And not} 67. e8=B Bxe8+ $11) 67... Bb5 {[%emt 0:00:45]} 68. Bf7 {[%emt 0:00:06]} Ba4 {[%emt 0:00:17]} 69. Kf8 {[%emt 0:00:15]} ({Not} 69. e8=B Bxe8 $11) 69... Kf6 {[%emt 0:00:03]} 70. Be8 {[%emt 0:00:04]} Bc2 {[%emt 0:00:28]} 71. Bb5 {[%emt 0:00:27]} Bg6 {[%emt 0:00:04]} 72. Bd3 {[%emt 0:00:56]} ({Weaker is} 72. e8=R Bxe8 $11) 72... Bh5 {[%emt 0:00:27]} 73. e8=R {[%emt 0:00:07]} (73. Bc4 $16) 73... Bxe8 $11 {[%emt 0:00:02]} 74. Kxe8 {[%emt 0:00:07]} 1/2-1/2